Workbook

Sheet Index
A1: Index and File Details
B3: Index | H3: File Details
B5: Inputs | D5: Inputs / Calculations | F5: Outputs | I5: Model | J5: TransGrid | Humelink LLE Capex Forecast Model
I6: Author | J6: TransGrid
B7: Notes & Assumptions | D7: Calculations | F7: Outputs | I7: Revision | J7: 2023-05-19
B8: Inputs | I8: Status | J8: Proposal
H12: Instructions
I14: Input Sheets
I15: Fill in any cells marked as input cells as seen on the right => | K15: user input
I16: Historical
I17: Cells not marked as inputs should not be modified.

Sheet Notes & Assumptions
A1: Assumptions & Notes
E3: User inputs in cells coloured like this
C4: * | E4: 1. Inputs are in $. Outputs are $million.
C5: * | E5: 2. Financial years are recorded in the Capex Forecast Model as tax years (eg. 2017/18 is shown as 2018, 2018/19 is shown as 2019)
C6: * | E6: 3. Escalation is treated as follows:
E7: a. CPI escalation and Labour escalation are treated separately.
E8: b. Escalation is applied to Expenditure Components (i.e. Labour)
A10: Modifications
A11: Date | B11: Version | D11: Who | E11: Notes
A12: 2023-05-19 | B12: v1.1 | E12: Initial model development

Sheet Inputs
A1: Inputs
A4: Output Reporting Fomat and Year
A5: Real
A6: 2018
A8: =IF(Real_or_Nom="Real", "Real $" & Report_Year, "$ Nominal") -> Real $2018
A10: Indexation
A13: Forecasts | L13: Rates
A14: Item | B14: Source | C14: Units | L14: =L19 -> 2019 | M14: 2020 | N14: 2021 | O14: 2022 | P14: 2023 | Q14: 2024 | R14: 2025 | S14: 2026 | T14: 2027 | U14: 2028
A15: Actual / Forecast Inflation | B15: ABS June to June / RBA Forecast | C15: % | L15: =114.8/113-1 -> 0.01592920354 | M15: =114.4/114.8-1 -> -0.003484320557 | N15: =118.8/114.4-1 -> 0.03846153846 | O15: =126.1/118.8-1 -> 0.06144781145 | P15: 0.067 | Q15: 0.02919304851 | R15: =Q15 -> 0.02919304851 | S15: =R15 -> 0.02919304851 | T15: =S15 -> 0.02919304851 | U15: =T15 -> 0.02919304851 | W15: ◄ Actual June year on year inflation used for 2019 to 2022. Forecast inflation for 2023 to 2028 as per the AER's Final Decision.
A18: Cumulative Factors | K18: Cumulative factors
A19: Item | B19: Source | C19: Units | K19: 2018 | L19: =K19+1 -> 2019 | M19: 2020 | N19: 2021 | O19: 2022 | P19: 2023 | Q19: 2024 | R19: =Q19+1 -> 2025 | S19: =R19+1 -> 2026 | T19: =S19+1 -> 2027 | U19: =T19+1 -> 2028
A20: Real 2018 End Period to Nominal End Period | B20: Calculated | C20: Factor | K20: 1 | L20: =K20*(1+L15) -> 1.015929204 | M20: 1.012389381 | N20: 1.051327434 | O20: 1.115929204 | P20: 1.19069646 | Q20: 1.22545652 | R20: 1.261231331 | S20: =R20*(1+S15) -> 1.298050519 | T20: =S20*(1+T15) -> 1.335944571 | U20: =T20*(1+U15) -> 1.374944865
A21: Real 2018 End Period to Real 2023 End Period | B21: Calculated | C21: Factor | L21: =$P$20/$K$20 -> 1.19069646 | M21: 1.19069646 | N21: 1.19069646 | O21: 1.19069646 | P21: 1.19069646 | Q21: 1.19069646 | R21: 1.19069646 | S21: 1.19069646 | T21: 1.19069646 | U21: 1.19069646
A22: Real 2018 End Period to Nominal Mid Period | B22: Calculated | C22: Factor | L22: =IF(K22="",$K$20,K$22) *(1+K$15)^0.5 *(1+L$15)^0.5 -> 1.007933134 | M22: 1.014157748 | N22: 1.031674721 | O22: 1.083146798 | P22: 1.152706794 | Q22: 1.207951464 | R22: 1.24321525 | S22: =IF(R22="",$K$20,R$22) *(1+R$15)^0.5 *(1+S$15)^0.5 -> 1.279508493 | T22: =IF(S22="",$K$20,S$22) *(1+S$15)^0.5 *(1+T$15)^0.5 -> 1.316861247 | U22: =IF(T22="",$K$20,T$22) *(1+T$15)^0.5 *(1+U$15)^0.5 -> 1.355304441
A25: Asset Classes
A28: Asset Classes
A29: Description
A30: Transmission Lines
A31: Underground Cables
A32: Substations
A33: Secondary Systems
A34: Communications (short life)
A35: Business IT
A36: Minor Plant, Motor Vehicles & Mobile Plant
A37: Transmission Line Life Extension
A38: Land and Easements
A39: NSCAS Assets
A40: Synchronous Condensers (2018-23)
A41: Leasehold Land and Property
A42: Buildings - capital works
A43: In-house software
A46: Capital Expenditure | Long-Lead Equipment
A48: Forecast Approved in CPA 1
A50: Long-Lead Equipment | E50: Conversion | H50: ="$"&E52 -> $2022 | I50: Asset Class | Q50: ="As Incurred Capex (June "&$F$52&" dollars)" -> As Incurred Capex (June 2018 dollars) | W50: ="As Commissioned Capex (June "&$F$52&" dollars)" -> As Commissioned Capex (June 2018 dollars) | AB50: ◄ Inputs sourced from CPA 1 decision
A51: Category | B51: Source | C51: Units | E51: Dollar Year From | F51: Dollar Year To | H51: Value | I51: Asset Class | Q51: 2023 | R51: 2024 | S51: 2025 | T51: 2026 | U51: Total | W51: 2023 | X51: 2024 | Y51: 2025 | Z51: 2026 | AA51: Total
A52: Steel & Tower | Production Slot For Steel | B52: Project Team Input | C52: $Millions | E52: 2022 | F52: 2018 | H52: c-i-c | I52: Transmission Lines | Q52: c-i-c | R52: c-i-c | S52: c-i-c | T52: c-i-c | U52: c-i-c | W52: c-i-c | X52: c-i-c | Y52: c-i-c | Z52: c-i-c | AA52: c-i-c
A53: Substation | Long Lead Equipment (Transformers And Reactors) | B53: Project Team Input | C53: $Millions | E53: 2022 | F53: 2018 | H53: c-i-c | I53: Substations | Q53: c-i-c | R53: c-i-c | S53: c-i-c | T53: c-i-c | U53: c-i-c | W53: c-i-c | X53: c-i-c | Y53: c-i-c | Z53: c-i-c | AA53: c-i-c
G55: Total | H55: 24.63168806 | P55: Total | Q55: 15.6109606 | R55: 7.191113268 | S55: 0 | T55: 0 | U55: 22.80207387 | W55: 0 | X55: 22.80207387 | Y55: 0 | Z55: 0 | AA55: 22.80207387
A58: Revised Forecast
A60: Long-Lead Equipment | E60: Conversion | H60: Expenditure | K60: As Incurred Spend Profile | Q60: ="As Incurred Capex (June "&$F$62&" dollars)" -> As Incurred Capex (June 2018 dollars) | W60: ="As Commissioned Capex (June "&$F$62&" dollars)" -> As Commissioned Capex (June 2018 dollars) | AB60: ◄ Assumed commissioning occurs in FY25
A61: Category | B61: Source | C61: Units | E61: Dollar Year From | F61: Dollar Year To | H61: Value | I61: Asset Class | K61: =Q51 -> 2023 | L61: =R51 -> 2024 | M61: =S51 -> 2025 | N61: =T51 -> 2026 | O61: =U51 -> Total | Q61: =K61 -> 2023 | R61: =L61 -> 2024 | S61: =M61 -> 2025 | T61: =N61 -> 2026 | U61: =O61 -> Total | W61: 2023 | X61: 2024 | Y61: 2025 | Z61: 2026 | AA61: Total
A62: Steel & Tower | Long Lead Equipmenp | B62: Project Team Input | C62: $Millions | E62: 2023 | F62: =Report_Year -> 2018 | H62: c-i-c | I62: Transmission Lines | K62: 0 | L62: 0.593 | M62: 0.407 | N62: 0 | O62: =SUM(K62:N62) -> 1 | Q62: c-i-c | R62: c-i-c | S62: c-i-c | T62: c-i-c | U62: c-i-c | W62: c-i-c | X62: c-i-c | Y62: c-i-c | Z62: c-i-c | AA62: c-i-c
A63: Substation | Long Lead Equipment (Transformers And Reactors) | B63: Project Team Input | C63: $Millions | E63: 2023 | F63: =F62 -> 2018 | H63: c-i-c | I63: Substations | K63: 0.2204653055 | L63: 0.09000234938 | M63: 0.6895323451 | N63: 0 | O63: =SUM(K63:N63) -> 1 | Q63: c-i-c | R63: c-i-c | S63: c-i-c | T63: c-i-c | U63: c-i-c | W63: c-i-c | X63: c-i-c | Y63: c-i-c | Z63: c-i-c | AA63: c-i-c
G65: Total | H65: 253.8966038 | P65: Total | Q65: 15.6109606 | R65: 92.92029476 | S65: 105.6182937 | T65: 0 | U65: 213.2336933 | W65: 0 | X65: 0 | Y65: 213.2336933 | Z65: 0 | AA65: 213.2336933
P67: Change | Q67: 0 | R67: 85.72918149 | S67: 105.6182937 | T67: 0 | U67: 190.4316194 | W67: 0 | X67: -22.80207387 | Y67: 213.2336933 | Z67: 0 | AA67: 190.4316194

Sheet Outputs | Models
A1: Outputs | Models
A4: As Incurred Capex By Asset Class
B6: Output Table for PTRM (2018-23) | F6: As Incurred | P6: Total
D7: Dollar basis | E7: Units | F7: 2019 | G7: 2020 | H7: 2021 | I7: 2022 | J7: 2023 | K7: 2024 | L7: 2025 | M7: 2026 | N7: 2027 | O7: 2028
B9: Capex
B10: Transmission Lines | D10: Real $2018 | E10: $Million | F10: c-i-c | G10: c-i-c | H10: c-i-c | I10: c-i-c | J10: c-i-c | K10: c-i-c | L10: c-i-c | M10: c-i-c | N10: c-i-c | O10: c-i-c | P10: c-i-c
B11: Underground Cables | D11: Real $2018 | E11: $Million | F11: c-i-c | G11: c-i-c | H11: c-i-c | I11: c-i-c | J11: c-i-c | K11: c-i-c | L11: c-i-c | M11: c-i-c | N11: c-i-c | O11: c-i-c | P11: c-i-c
B12: Substations | D12: Real $2018 | E12: $Million | F12: c-i-c | G12: c-i-c | H12: c-i-c | I12: c-i-c | J12: c-i-c | K12: c-i-c | L12: c-i-c | M12: c-i-c | N12: c-i-c | O12: c-i-c | P12: c-i-c
B13: Secondary Systems | D13: Real $2018 | E13: $Million | F13: c-i-c | G13: c-i-c | H13: c-i-c | I13: c-i-c | J13: c-i-c | K13: c-i-c | L13: c-i-c | M13: c-i-c | N13: c-i-c | O13: c-i-c | P13: c-i-c
B14: Communications (short life) | D14: Real $2018 | E14: $Million | F14: c-i-c | G14: c-i-c | H14: c-i-c | I14: c-i-c | J14: c-i-c | K14: c-i-c | L14: c-i-c | M14: c-i-c | N14: c-i-c | O14: c-i-c | P14: c-i-c
B15: Business IT | D15: Real $2018 | E15: $Million | F15: c-i-c | G15: c-i-c | H15: c-i-c | I15: c-i-c | J15: c-i-c | K15: c-i-c | L15: c-i-c | M15: c-i-c | N15: c-i-c | O15: c-i-c | P15: c-i-c
B16: Minor Plant, Motor Vehicles & Mobile Plant | D16: Real $2018 | E16: $Million | F16: c-i-c | G16: c-i-c | H16: c-i-c | I16: c-i-c | J16: c-i-c | K16: c-i-c | L16: c-i-c | M16: c-i-c | N16: c-i-c | O16: c-i-c | P16: c-i-c
B17: Transmission Line Life Extension | D17: Real $2018 | E17: $Million | F17: c-i-c | G17: c-i-c | H17: c-i-c | I17: c-i-c | J17: c-i-c | K17: c-i-c | L17: c-i-c | M17: c-i-c | N17: c-i-c | O17: c-i-c | P17: c-i-c
B18: Land and Easements | D18: Real $2018 | E18: $Million | F18: c-i-c | G18: c-i-c | H18: c-i-c | I18: c-i-c | J18: c-i-c | K18: c-i-c | L18: c-i-c | M18: c-i-c | N18: c-i-c | O18: c-i-c | P18: c-i-c
B19: NSCAS Assets | D19: Real $2018 | E19: $Million | F19: c-i-c | G19: c-i-c | H19: c-i-c | I19: c-i-c | J19: c-i-c | K19: c-i-c | L19: c-i-c | M19: c-i-c | N19: c-i-c | O19: c-i-c | P19: c-i-c
B20: Synchronous Condensers (2018-23) | D20: Real $2018 | E20: $Million | F20: c-i-c | G20: c-i-c | H20: c-i-c | I20: c-i-c | J20: c-i-c | K20: c-i-c | L20: c-i-c | M20: c-i-c | N20: c-i-c | O20: c-i-c | P20: c-i-c
B21: Leasehold Land and Property | D21: Real $2018 | E21: $Million | F21: c-i-c | G21: c-i-c | H21: c-i-c | I21: c-i-c | J21: c-i-c | K21: c-i-c | L21: c-i-c | M21: c-i-c | N21: c-i-c | O21: c-i-c | P21: c-i-c
B22: Buildings - capital works | D22: Real $2018 | E22: $Million | F22: c-i-c | G22: c-i-c | H22: c-i-c | I22: c-i-c | J22: c-i-c | K22: c-i-c | L22: c-i-c | M22: c-i-c | N22: c-i-c | O22: c-i-c | P22: c-i-c
B23: In-house software | D23: Real $2018 | E23: $Million | F23: c-i-c | G23: c-i-c | H23: c-i-c | I23: c-i-c | J23: c-i-c | K23: c-i-c | L23: c-i-c | M23: c-i-c | N23: c-i-c | O23: c-i-c | P23: c-i-c
B25: Total | D25: Real $2018 | E25: $Million | F25: 0 | G25: 0 | H25: 0 | I25: 0 | J25: 0 | K25: 85.72918149 | L25: 105.6182937 | M25: 0 | N25: 0 | O25: 0 | P25: 191.3474752
A27: As Commissioned Capex By Asset Class
B29: Output Table for PTRM (2018-23) | F29: As Incurred | P29: Total
D30: Dollar basis | E30: Units | F30: 2019 | G30: 2020 | H30: 2021 | I30: 2022 | J30: 2023 | K30: 2024 | L30: 2025 | M30: 2026 | N30: 2027 | O30: 2028
B32: Capex
B33: Transmission Lines | D33: Real $2018 | E33: $Million | F33: c-i-c | G33: c-i-c | H33: c-i-c | I33: c-i-c | J33: c-i-c | K33: c-i-c | L33: c-i-c | M33: c-i-c | N33: c-i-c | O33: c-i-c | P33: c-i-c
B34: Underground Cables | D34: Real $2018 | E34: $Million | F34: c-i-c | G34: c-i-c | H34: c-i-c | I34: c-i-c | J34: c-i-c | K34: c-i-c | L34: c-i-c | M34: c-i-c | N34: c-i-c | O34: c-i-c | P34: c-i-c
B35: Substations | D35: Real $2018 | E35: $Million | F35: c-i-c | G35: c-i-c | H35: c-i-c | I35: c-i-c | J35: c-i-c | K35: c-i-c | L35: c-i-c | M35: c-i-c | N35: c-i-c | O35: c-i-c | P35: c-i-c
B36: Secondary Systems | D36: Real $2018 | E36: $Million | F36: c-i-c | G36: c-i-c | H36: c-i-c | I36: c-i-c | J36: c-i-c | K36: c-i-c | L36: c-i-c | M36: c-i-c | N36: c-i-c | O36: c-i-c | P36: c-i-c
B37: Communications (short life) | D37: Real $2018 | E37: $Million | F37: c-i-c | G37: c-i-c | H37: c-i-c | I37: c-i-c | J37: c-i-c | K37: c-i-c | L37: c-i-c | M37: c-i-c | N37: c-i-c | O37: c-i-c | P37: c-i-c
B38: Business IT | D38: Real $2018 | E38: $Million | F38: c-i-c | G38: c-i-c | H38: c-i-c | I38: c-i-c | J38: c-i-c | K38: c-i-c | L38: c-i-c | M38: c-i-c | N38: c-i-c | O38: c-i-c | P38: c-i-c
B39: Minor Plant, Motor Vehicles & Mobile Plant | D39: Real $2018 | E39: $Million | F39: c-i-c | G39: c-i-c | H39: c-i-c | I39: c-i-c | J39: c-i-c | K39: c-i-c | L39: c-i-c | M39: c-i-c | N39: c-i-c | O39: c-i-c | P39: c-i-c
B40: Transmission Line Life Extension | D40: Real $2018 | E40: $Million | F40: c-i-c | G40: c-i-c | H40: c-i-c | I40: c-i-c | J40: c-i-c | K40: c-i-c | L40: c-i-c | M40: c-i-c | N40: c-i-c | O40: c-i-c | P40: c-i-c
B41: Land and Easements | D41: Real $2018 | E41: $Million | F41: c-i-c | G41: c-i-c | H41: c-i-c | I41: c-i-c | J41: c-i-c | K41: c-i-c | L41: c-i-c | M41: c-i-c | N41: c-i-c | O41: c-i-c | P41: c-i-c
B42: NSCAS Assets | D42: Real $2018 | E42: $Million | F42: c-i-c | G42: c-i-c | H42: c-i-c | I42: c-i-c | J42: c-i-c | K42: c-i-c | L42: c-i-c | M42: c-i-c | N42: c-i-c | O42: c-i-c | P42: c-i-c
B43: Synchronous Condensers (2018-23) | D43: Real $2018 | E43: $Million | F43: c-i-c | G43: c-i-c | H43: c-i-c | I43: c-i-c | J43: c-i-c | K43: c-i-c | L43: c-i-c | M43: c-i-c | N43: c-i-c | O43: c-i-c | P43: c-i-c
B44: Leasehold Land and Property | D44: Real $2018 | E44: $Million | F44: c-i-c | G44: c-i-c | H44: c-i-c | I44: c-i-c | J44: c-i-c | K44: c-i-c | L44: c-i-c | M44: c-i-c | N44: c-i-c | O44: c-i-c | P44: c-i-c
B45: Buildings - capital works | D45: Real $2018 | E45: $Million | F45: c-i-c | G45: c-i-c | H45: c-i-c | I45: c-i-c | J45: c-i-c | K45: c-i-c | L45: c-i-c | M45: c-i-c | N45: c-i-c | O45: c-i-c | P45: c-i-c
B46: In-house software | D46: Real $2018 | E46: $Million | F46: c-i-c | G46: c-i-c | H46: c-i-c | I46: c-i-c | J46: c-i-c | K46: c-i-c | L46: c-i-c | M46: c-i-c | N46: c-i-c | O46: c-i-c | P46: c-i-c
B48: Total | D48: Real $2018 | E48: $Million | F48: 0 | G48: 0 | H48: 0 | I48: 0 | J48: 0 | K48: -22.80207387 | L48: 213.2336933 | M48: 0 | N48: 0 | O48: 0 | P48: 190.4316194
A50: Input to PTRM for the 2018-23 period (if needed)
B52: Output Table for PTRM (2018-23) | F52: As Incurred | K52: Total | M52: As Commissioned | R52: Total
D53: Dollar basis | E53: Units | F53: 2019 | G53: 2020 | H53: 2021 | I53: 2022 | J53: 2023 | M53: 2019 | N53: 2020 | O53: 2021 | P53: 2022 | Q53: 2023
B55: Capex
B56: Transmission Lines | D56: Real $2018 | E56: $Million | F56: c-i-c | G56: c-i-c | H56: c-i-c | I56: c-i-c | J56: c-i-c | K56: c-i-c | Q56: 0 | R56: 0
B57: Underground Cables | D57: Real $2018 | E57: $Million | F57: c-i-c | G57: c-i-c | H57: c-i-c | I57: c-i-c | J57: c-i-c | K57: c-i-c | Q57: 0 | R57: 0
B58: Substations | D58: Real $2018 | E58: $Million | F58: c-i-c | G58: c-i-c | H58: c-i-c | I58: c-i-c | J58: c-i-c | K58: c-i-c | Q58: 0 | R58: 0
B59: Secondary Systems | D59: Real $2018 | E59: $Million | F59: c-i-c | G59: c-i-c | H59: c-i-c | I59: c-i-c | J59: c-i-c | K59: c-i-c | Q59: 0 | R59: 0
B60: Communications (short life) | D60: Real $2018 | E60: $Million | F60: c-i-c | G60: c-i-c | H60: c-i-c | I60: c-i-c | J60: c-i-c | K60: c-i-c | Q60: 0 | R60: 0
B61: Business IT | D61: Real $2018 | E61: $Million | F61: c-i-c | G61: c-i-c | H61: c-i-c | I61: c-i-c | J61: c-i-c | K61: c-i-c | Q61: 0 | R61: 0
B62: Minor Plant, Motor Vehicles & Mobile Plant | D62: Real $2018 | E62: $Million | F62: c-i-c | G62: c-i-c | H62: c-i-c | I62: c-i-c | J62: c-i-c | K62: c-i-c | Q62: 0 | R62: 0
B63: Transmission Line Life Extension | D63: Real $2018 | E63: $Million | F63: c-i-c | G63: c-i-c | H63: c-i-c | I63: c-i-c | J63: c-i-c | K63: c-i-c | Q63: 0 | R63: 0
B64: Land and Easements | D64: Real $2018 | E64: $Million | F64: c-i-c | G64: c-i-c | H64: c-i-c | I64: c-i-c | J64: c-i-c | K64: c-i-c | Q64: 0 | R64: 0
B65: NSCAS Assets | D65: Real $2018 | E65: $Million | F65: c-i-c | G65: c-i-c | H65: c-i-c | I65: c-i-c | J65: c-i-c | K65: c-i-c | Q65: 0 | R65: 0
B66: Synchronous Condensers (2018-23) | D66: Real $2018 | E66: $Million | F66: c-i-c | G66: c-i-c | H66: c-i-c | I66: c-i-c | J66: c-i-c | K66: c-i-c | Q66: 0 | R66: 0
B68: Total | D68: Real $2018 | E68: $Million | F68: 0 | G68: 0 | H68: 0 | I68: 0 | J68: 0 | K68: 0 | M68: 0 | N68: 0 | O68: 0 | P68: 0 | Q68: 0 | R68: 0
A71: Input to RFM for the 2018-23 period
B73: Real 2018 End Period to Nominal Mid Period | F73: 1.007933134 | G73: 1.014157748 | H73: 1.031674721 | I73: 1.083146798 | J73: 1.152706794
B75: Output Table for RFM (2018-23) | F75: As Incurred | K75: Total | M75: As Commissioned | R75: Total
D76: Dollar basis | E76: Units | F76: 2019 | G76: 2020 | H76: 2021 | I76: 2022 | J76: 2023 | M76: 2019 | N76: 2020 | O76: 2021 | P76: 2022 | Q76: 2023
B78: Capex
B79: Transmission Lines | D79: $Nominal | E79: $Million | F79: c-i-c | G79: c-i-c | H79: c-i-c | I79: c-i-c | J79: c-i-c | K79: c-i-c | Q79: 0 | R79: 0
B80: Underground Cables | D80: $Nominal | E80: $Million | F80: c-i-c | G80: c-i-c | H80: c-i-c | I80: c-i-c | J80: c-i-c | K80: c-i-c | Q80: 0 | R80: 0
B81: Substations | D81: $Nominal | E81: $Million | F81: c-i-c | G81: c-i-c | H81: c-i-c | I81: c-i-c | J81: c-i-c | K81: c-i-c | Q81: 0 | R81: 0
B82: Secondary Systems | D82: $Nominal | E82: $Million | F82: c-i-c | G82: c-i-c | H82: c-i-c | I82: c-i-c | J82: c-i-c | K82: c-i-c | Q82: 0 | R82: 0
B83: Communications (short life) | D83: $Nominal | E83: $Million | F83: c-i-c | G83: c-i-c | H83: c-i-c | I83: c-i-c | J83: c-i-c | K83: c-i-c | Q83: 0 | R83: 0
B84: Business IT | D84: $Nominal | E84: $Million | F84: c-i-c | G84: c-i-c | H84: c-i-c | I84: c-i-c | J84: c-i-c | K84: c-i-c | Q84: 0 | R84: 0
B85: Minor Plant, Motor Vehicles & Mobile Plant | D85: $Nominal | E85: $Million | F85: c-i-c | G85: c-i-c | H85: c-i-c | I85: c-i-c | J85: c-i-c | K85: c-i-c | Q85: 0 | R85: 0
B86: Transmission Line Life Extension | D86: $Nominal | E86: $Million | F86: c-i-c | G86: c-i-c | H86: c-i-c | I86: c-i-c | J86: c-i-c | K86: c-i-c | Q86: 0 | R86: 0
B87: Land and Easements | D87: $Nominal | E87: $Million | F87: c-i-c | G87: c-i-c | H87: c-i-c | I87: c-i-c | J87: c-i-c | K87: c-i-c | Q87: 0 | R87: 0
B88: NSCAS Assets | D88: $Nominal | E88: $Million | F88: c-i-c | G88: c-i-c | H88: c-i-c | I88: c-i-c | J88: c-i-c | K88: c-i-c | Q88: 0 | R88: 0
B89: Synchronous Condensers (2018-23) | D89: $Nominal | E89: $Million | F89: c-i-c | G89: c-i-c | H89: c-i-c | I89: c-i-c | J89: c-i-c | K89: c-i-c | Q89: 0 | R89: 0
B90: Leasehold Land and Property | D90: $Nominal | E90: $Million | F90: c-i-c | G90: c-i-c | H90: c-i-c | I90: c-i-c | J90: c-i-c | K90: c-i-c | Q90: 0 | R90: 0
B92: Total | D92: $Nominal | E92: $Million | F92: 0 | G92: 0 | H92: 0 | I92: 0 | J92: 0 | K92: 0 | M92: 0 | N92: 0 | O92: 0 | P92: 0 | Q92: 0 | R92: 0
A95: Input to PTRM for the 2023-28 period
B97: Real 2018 End Period to Real 2023 End Period | F97: 1.19069646 | G97: 1.19069646 | H97: 1.19069646 | I97: 1.19069646 | J97: 1.19069646
B99: Output Table for PTRM (2023-28) | F99: As Incurred | K99: Total | M99: As Commissioned | R99: Total
D100: Dollar basis | E100: Units | F100: 2024 | G100: 2025 | H100: 2026 | I100: 2027 | J100: 2028 | M100: 2024 | N100: 2025 | O100: 2026 | P100: 2027 | Q100: 2028
B102: Capex
B103: Transmission Lines | D103: Real $2023 | E103: $Million | F103: c-i-c | G103: c-i-c | H103: c-i-c | I103: c-i-c | J103: c-i-c | K103: c-i-c | M103: c-i-c | N103: c-i-c | O103: c-i-c | P103: c-i-c | Q103: c-i-c | R103: c-i-c
B104: Underground Cables | D104: Real $2023 | E104: $Million | F104: c-i-c | G104: c-i-c | H104: c-i-c | I104: c-i-c | J104: c-i-c | K104: c-i-c | M104: c-i-c | N104: c-i-c | O104: c-i-c | P104: c-i-c | Q104: c-i-c | R104: c-i-c
B105: Substations | D105: Real $2023 | E105: $Million | F105: c-i-c | G105: c-i-c | H105: c-i-c | I105: c-i-c | J105: c-i-c | K105: c-i-c | M105: c-i-c | N105: c-i-c | O105: c-i-c | P105: c-i-c | Q105: c-i-c | R105: c-i-c
B106: Secondary Systems | D106: Real $2023 | E106: $Million | F106: c-i-c | G106: c-i-c | H106: c-i-c | I106: c-i-c | J106: c-i-c | K106: c-i-c | M106: c-i-c | N106: c-i-c | O106: c-i-c | P106: c-i-c | Q106: c-i-c | R106: c-i-c
B107: Communications (short life) | D107: Real $2023 | E107: $Million | F107: c-i-c | G107: c-i-c | H107: c-i-c | I107: c-i-c | J107: c-i-c | K107: c-i-c | M107: c-i-c | N107: c-i-c | O107: c-i-c | P107: c-i-c | Q107: c-i-c | R107: c-i-c
B108: Business IT | D108: Real $2023 | E108: $Million | F108: c-i-c | G108: c-i-c | H108: c-i-c | I108: c-i-c | J108: c-i-c | K108: c-i-c | M108: c-i-c | N108: c-i-c | O108: c-i-c | P108: c-i-c | Q108: c-i-c | R108: c-i-c
B109: Minor Plant, Motor Vehicles & Mobile Plant | D109: Real $2023 | E109: $Million | F109: c-i-c | G109: c-i-c | H109: c-i-c | I109: c-i-c | J109: c-i-c | K109: c-i-c | M109: c-i-c | N109: c-i-c | O109: c-i-c | P109: c-i-c | Q109: c-i-c | R109: c-i-c
B110: Transmission Line Life Extension | D110: Real $2023 | E110: $Million | F110: c-i-c | G110: c-i-c | H110: c-i-c | I110: c-i-c | J110: c-i-c | K110: c-i-c | M110: c-i-c | N110: c-i-c | O110: c-i-c | P110: c-i-c | Q110: c-i-c | R110: c-i-c
B111: Land and Easements | D111: Real $2023 | E111: $Million | F111: c-i-c | G111: c-i-c | H111: c-i-c | I111: c-i-c | J111: c-i-c | K111: c-i-c | M111: c-i-c | N111: c-i-c | O111: c-i-c | P111: c-i-c | Q111: c-i-c | R111: c-i-c
B112: Synchronous Condensers | D112: Real $2023 | E112: $Million | F112: c-i-c | G112: c-i-c | H112: c-i-c | I112: c-i-c | J112: c-i-c | K112: c-i-c | M112: c-i-c | N112: c-i-c | O112: c-i-c | P112: c-i-c | Q112: c-i-c | R112: c-i-c
B113: Leasehold Land and Property | D113: Real $2023 | E113: $Million | F113: c-i-c | G113: c-i-c | H113: c-i-c | I113: c-i-c | J113: c-i-c | K113: c-i-c | M113: c-i-c | N113: c-i-c | O113: c-i-c | P113: c-i-c | Q113: c-i-c | R113: c-i-c
B114: Buildings - capital works | D114: Real $2023 | E114: $Million | F114: c-i-c | G114: c-i-c | H114: c-i-c | I114: c-i-c | J114: c-i-c | K114: c-i-c | M114: c-i-c | N114: c-i-c | O114: c-i-c | P114: c-i-c | Q114: c-i-c | R114: c-i-c
B115: In-house software | D115: Real $2023 | E115: $Million | F115: c-i-c | G115: c-i-c | H115: c-i-c | I115: c-i-c | J115: c-i-c | K115: c-i-c | M115: c-i-c | N115: c-i-c | O115: c-i-c | P115: c-i-c | Q115: c-i-c | R115: c-i-c
B117: Total | D117: Real $2023 | E117: $Million | F117: 102.1 | G117: 125.8 | H117: 0 | I117: 0 | J117: 0 | K117: =227.9 -> 227.9 | M117: -27.15034864 | N117: 253.8966038 | O117: 0 | P117: 0 | Q117: 0 | R117: 226.7462551
A119: Input to PTRM for the 2018-23 period
B121: Output Table for PTRM (2018-23) | F121: As Incurred | K121: Total | M121: As Commissioned | R121: Total
D122: Dollar basis | E122: Units | F122: 2019 | G122: 2020 | H122: 2021 | I122: 2022 | J122: 2023 | M122: 2019 | N122: 2020 | O122: 2021 | P122: 2022 | Q122: 2023
B124: Capex
B125: Transmission Lines | D125: Real $2018 | E125: $Million | F125: c-i-c | G125: c-i-c | H125: c-i-c | I125: c-i-c | J125: c-i-c | K125: c-i-c | Q125: 0 | R125: 0
B126: Underground Cables | D126: Real $2018 | E126: $Million | F126: c-i-c | G126: c-i-c | H126: c-i-c | I126: c-i-c | J126: c-i-c | K126: c-i-c | Q126: 0 | R126: 0
B127: Substations | D127: Real $2018 | E127: $Million | F127: c-i-c | G127: c-i-c | H127: c-i-c | I127: c-i-c | J127: c-i-c | K127: c-i-c | Q127: 0 | R127: 0
B128: Secondary Systems | D128: Real $2018 | E128: $Million | F128: c-i-c | G128: c-i-c | H128: c-i-c | I128: c-i-c | J128: c-i-c | K128: c-i-c | Q128: 0 | R128: 0
B129: Communications (short life) | D129: Real $2018 | E129: $Million | F129: c-i-c | G129: c-i-c | H129: c-i-c | I129: c-i-c | J129: c-i-c | K129: c-i-c | Q129: 0 | R129: 0
B130: Business IT | D130: Real $2018 | E130: $Million | F130: c-i-c | G130: c-i-c | H130: c-i-c | I130: c-i-c | J130: c-i-c | K130: c-i-c | Q130: 0 | R130: 0
B131: Minor Plant, Motor Vehicles & Mobile Plant | D131: Real $2018 | E131: $Million | F131: c-i-c | G131: c-i-c | H131: c-i-c | I131: c-i-c | J131: c-i-c | K131: c-i-c | Q131: 0 | R131: 0
B132: Transmission Line Life Extension | D132: Real $2018 | E132: $Million | F132: c-i-c | G132: c-i-c | H132: c-i-c | I132: c-i-c | J132: c-i-c | K132: c-i-c | Q132: 0 | R132: 0
B133: Land and Easements | D133: Real $2018 | E133: $Million | F133: c-i-c | G133: c-i-c | H133: c-i-c | I133: c-i-c | J133: c-i-c | K133: c-i-c | Q133: 0 | R133: 0
B134: Synchronous Condensers | D134: Real $2018 | E134: $Million | F134: c-i-c | G134: c-i-c | H134: c-i-c | I134: c-i-c | J134: c-i-c | K134: c-i-c | Q134: 0 | R134: 0
B135: Leasehold Land and Property | D135: Real $2018 | E135: $Million | F135: c-i-c | G135: c-i-c | H135: c-i-c | I135: c-i-c | J135: c-i-c | K135: c-i-c | Q135: 0 | R135: 0
B136: Buildings - capital works | D136: Real $2018 | E136: $Million | F136: c-i-c | G136: c-i-c | H136: c-i-c | I136: c-i-c | J136: c-i-c | K136: c-i-c | Q136: 0 | R136: 0
B137: In-house software | D137: Real $2018 | E137: $Million | F137: c-i-c | G137: c-i-c | H137: c-i-c | I137: c-i-c | J137: c-i-c | K137: c-i-c | Q137: 0 | R137: 0
B139: Total | D139: Real $2018 | E139: $Million | F139: 0 | G139: 0 | H139: 0 | I139: 0 | J139: 0 | K139: 0 | M139: 0 | N139: 0 | O139: 0 | P139: 0 | Q139: 0 | R139: 0

Sheet LLE Costs >

Sheet Transformers
C1: CONFIDENTIAL

Sheet Reactors
C1: CONFIDENTIAL

Sheet Towers and Conductors
C1: CONFIDENTIAL
